[Event "Dutch Open 2022"]
[Site "Dieren"]
[Date "2022.08.04"]
[Round "9.13"]
[White "Saketh, Pedagandham"]
[Black "Labruyere, Roger"]
[Result "1/2-1/2"]
[ECO "A28"]
[WhiteElo "1928"]
[BlackElo "2070"]
[Annotator "TA"]
[PlyCount "113"]
[EventDate "2022.07.14"]
[EventType "swiss"]
[EventCountry "NED"]
[SourceTitle "playchess.com"]
[Source "ChessBase"]
[SourceQuality "1"]
[TimeControl "40/5400+30:1800+30"]

{[%evp 13,113,-23,-29,-46,-39,-47,-35,-47,-45,-39,-12,-37,-30,-54,-9,-8,-18,-101,-101,-93,-101,-101,-93,-186,-29,-41,-70,-81,-51,-93,0,-100,-33,-102,-101,-101,-101,-103,-77,-74,-72,-72,-77,-84,-33,-23,-32,-30,-15,-14,0,0,93,88,116,111,116,108,96,77,85,88,130,143,106,20,21,7,17,0,44,44,101,44,68,0,0,0,0,0,0,0,0,0,0,0,0,0,0,0,0,0,0,0,0,0,0,0,0,0,0,0]} 1. c4 {[%emt 0:12:21]} e5 {[%emt 0:00:03]} 2. Nc3 {[%emt 0:00:09]} Nf6 {[%emt 0:00:10]} 3. Nf3 {[%emt 0:00:06]} Nc6 {[%emt 0:00:12]} 4. e3 {[%emt 0:00:07]} Bb4 {[%emt 0:00:26]} 5. a3 {[%emt 0:00:56]} Bxc3 {[%emt 0:00:05]} 6. bxc3 {[%emt 0:00:12]} O-O {[%emt 0:00:20]} 7. d4 {[%emt 0:00:57]} d6 {[%emt 0:00:06]} 8. Be2 {[%emt 0:00:11] A28: English Opening: Four Knights Variation.} Bg4 {[%emt 0:03:50]} 9. O-O {[%emt 0:02:36]} e4 {[%emt 1:29:48]} 10. Nd2 {[%emt 0:00:10] Black is slightly better.} Bxe2 {[%emt 0:00:00]} 11. Qxe2 {[%emt 0:00:04] [#]} Re8 $146 {[%emt 0:00:00]} ({Predecessor:} 11... d5 12. cxd5 Nxd5 13. Nxe4 Nf6 14. Nxf6+ Qxf6 15. Rb1 b6 16. e4 Qg6 17. Bf4 Rac8 {1-0 (55) Fabian,L-Tschida,V Austria 1995}) 12. Rb1 {[%emt 0:00:31]} b6 {[%emt 0:00:00]} 13. Nb3 {[%emt 0:00:16]} a5 {[%emt 0:00:00]} 14. a4 {[%emt 0:01:40]} Qd7 {[%emt 0:00:00]} 15. c5 {[%emt 0:01:11]} (15. Nd2 $11) 15... dxc5 $17 {[%emt 0:00:00]} 16. dxc5 {[%emt 0:00:17] [#]} Ne5 $1 {[%emt 0:00:00]} 17. cxb6 {[%emt 0:01:45]} cxb6 {[%emt 0:00:00]} 18. Qa2 {[%emt 0:04:26]} (18. Ra1 $17) 18... Qg4 $2 {[%emt 0:00:00]} (18... Nd5 $19 19. Rd1 Rac8) 19. Nd4 $11 {[%emt 0:01:00] Prevents Re6.} Rad8 {[%emt 0:00:00]} 20. Qe2 {[%emt 0:07:05] Inhibits Nf3+.} ({Of course not} 20. Rxb6 Nf3+ 21. Kh1 Nd5) 20... Qd7 {[%emt 0:00:00]} 21. Qb5 {[%emt 0:01:50]} Qg4 {[%emt 0:00:00]} 22. Qe2 {[%emt 0:00:08] Prevents Nf3+.} Qc8 {[%emt 0:00:00]} (22... Qxe2 $17 23. Nxe2 Nc4) 23. Bd2 {[%emt 0:18:59]} ({White should play} 23. Rxb6 $15 Nd5 24. Rb3) 23... Qc4 {[%emt 0:00:00]} 24. Qxc4 {[%emt 0:01:58]} Nxc4 {[%emt 0:00:00]} 25. Rfd1 {[%emt 0:00:04]} Nd7 {[%emt 0:00:00]} 26. Nc6 {[%emt 0:12:42]} Rc8 {[%emt 0:00:00]} 27. Na7 {[%emt 0:00:07][%cal Bc6a7,Ba7b5,Bb5c7,Bc7d5,Bd5b6][%mdl 32]} Ra8 {[%emt 0:00:00]} 28. Nb5 {[%emt 0:01:13]} Rad8 {[%emt 0:00:00]} (28... Red8 $17 29. Be1 Nc5) 29. Nc7 $1 $15 {[%emt 0:03:42]} Rf8 {[%emt 0:00:00] White must now prevent ...Nc5.} 30. Be1 $1 {[%emt 0:05:02]} Nc5 {[%emt 0:00:00] And now ...Rd3 would win.} 31. Nd5 $1 {[%emt 0:00:29]} Nxa4 {[%emt 0:00:00] Pair of Knights!} 32. Rd4 {[%emt 0:00:13][%csl LRc4,LRe4]} Nab2 {[%emt 0:00:00] [#]} (32... b5 $11) 33. Nxb6 $1 $16 {[%emt 0:02:30][%mdl 64] Deflection} Nxb6 {[%emt 0:00:00]} (33... Rxd4 34. cxd4) 34. Rxb2 {[%emt 0:00:42]} Rb8 {[%emt 0:00:00]} 35. c4 {[%emt 0:06:06]} Na4 {[%emt 0:00:00]} 36. Rxb8 {[%emt 0:03:40]} Rxb8 {[%emt 0:00:00][%mdl 4096] Endgame KRB-KRN} 37. h3 {[%emt 0:00:08]} Rc8 {[%emt 0:00:00]} 38. Bxa5 {[%emt 0:00:23] Strongly threatening c5.} f5 {[%emt 0:00:30]} 39. Rd8+ {[%emt 0:00:12]} (39. c5 $16 Nb2 40. Bb6) 39... Rxd8 $11 {[%emt 0:00:05]} 40. Bxd8 {[%emt 0:00:04] KB-KN} Kf7 {[%emt 0:00:14]} 41. g4 {[%emt 0:30:21]} Ke8 {[%emt 0:32:03]} 42. Bc7 {[%emt 0:00:46]} Nb2 {[%emt 0:01:27]} (42... fxg4 $14 43. hxg4 Nc5) 43. c5 {[%emt 0:00:55]} (43. gxf5 $16 {c5 is the strong threat.} Nxc4 44. Kg2) 43... Nd3 {[%emt 0:00:13]} 44. Bd6 {[%emt 0:00:18]} (44. gxf5 $14 Nxc5 45. f3) 44... fxg4 $1 {[%emt 0:02:22] The position is equal.} 45. hxg4 {[%emt 0:00:14] Hoping for c6.} Kd7 {[%emt 0:00:06]} 46. Kg2 {[%emt 0:00:45]} Kc6 {[%emt 0:06:05]} 47. Kg3 {[%emt 0:00:16]} Kd5 {[%emt 0:02:26]} 48. Bf8 {[%emt 0:03:34]} g6 {[%emt 0:01:48]} 49. Bd6 {[%emt 0:01:43]} h5 {[%emt 0:00:46]} 50. gxh5 {[%emt 0:01:09]} gxh5 {[%emt 0:00:09]} 51. Kh4 {[%emt 0:00:47]} Nxf2 {[%emt 0:00:10]} 52. Kxh5 {[%emt 0:00:05]} Nd1 {[%emt 0:00:09]} 53. Kg4 {[%emt 0:00:00]} Nxe3+ {[%emt 0:00:00]} 54. Kf4 {[%emt 0:00:00]} Nc4 {[%emt 0:00:00]} 55. Bf8 {[%emt 0:00:00]} Ne5 {[%emt 0:00:00] Threatens to win with ...Ng6+.} 56. Bd6 {[%emt 0:00:00]} Nd3+ {[%emt 0:00:00]} 57. Ke3 {[%emt 0:00:00] Weighted Error Value: White=0.16 (very precise) /Black=0.24 (precise)} 1/2-1/2

[Event "Dutch Open 2022"]
[Site "Dieren"]
[Date "2022.08.04"]
[Round "9.14"]
[White "Binnendijk, Ferdinand"]
[Black "Zwirs, Jasper"]
[Result "1/2-1/2"]
[ECO "D30"]
[WhiteElo "2147"]
[BlackElo "2105"]
[Annotator "TA"]
[PlyCount "86"]
[EventDate "2022.07.14"]
[EventType "swiss"]
[EventCountry "NED"]
[SourceTitle "playchess.com"]
[Source "ChessBase"]
[SourceQuality "1"]
[TimeControl "40/5400+30:1800+30"]

{[%evp 17,86,17,16,0,11,0,7,0,37,37,48,50,36,39,89,89,80,73,70,39,44,0,29,29,35,35,47,37,56,34,48,46,184,177,171,33,46,61,176,171,163,161,149,133,212,212,289,268,330,343,289,315,783,0,0,0,452,418,388,0,0,0,0,0,0,0,0,0,0,0,0]} 1. d4 {[%emt 0:00:01]} d5 {[%emt 0:00:04]} 2. c4 {[%emt 0:00:04]} e6 {[%emt 0:00:04]} 3. Nf3 {[%emt 0:00:04]} Nf6 {[%emt 0:00:19]} 4. e3 {[%emt 0:00:06]} c6 {[%emt 0:02:04]} 5. Nbd2 {[%emt 0:00:05]} Be7 {[%emt 0:03:28]} 6. Bd3 {[%emt 0:00:04]} O-O {[%emt 0:00:06]} 7. O-O {[%emt 0:00:03]} Nbd7 {[%emt 0:05:25]} 8. b3 {[%emt 0:03:34] has lost popularity (8.e4).} b6 {[%emt 0:00:42]} 9. Bb2 {[%emt 0:00:13]} Bb7 {[%emt 0:01:01]} 10. Ne5 {[%emt 0:06:16] D30: Queen's Gambit Declined: Systems without Nc3.} c5 {[%emt 0:05:47]} 11. f4 {[%emt 0:10:33]} Ne4 {[%emt 0:06:52]} 12. cxd5 {[%emt 0:01:34]} exd5 {[%emt 0:02:51]} 13. Nxe4 {[%emt 0:01:36]} dxe4 {[%emt 0:00:05]} 14. Bb5 {[%emt 0:01:32]} Nxe5 {[%emt 0:07:49]} 15. dxe5 {[%emt 0:00:14] [#]} a6 $146 {[%emt 0:00:55]} (15... Qxd1 $1 $14 16. Rfxd1 (16. Raxd1 Rad8 $11) 16... Rad8) ({Predecessor:} 15... Qxd1 16. Raxd1 Rad8 17. Bd7 Ba6 18. Rf2 Bd3 19. e6 Kh8 20. Be5 fxe6 21. Bxe6 b5 {1-0 (45) Marichal Gonzalez,A (2317)-Descarrega Zacarias,V (1939) Porlamar 2018}) 16. Bd7 $16 {[%emt 0:04:50]} Qc7 {[%emt 0:13:01]} 17. Qg4 {[%emt 0:02:28]} Rad8 {[%emt 0:06:15]} 18. e6 {[%emt 0:03:43][%csl Gb2][%cal Rg4g7] White is more active.} f6 {[%emt 0:00:35]} 19. f5 {[%emt 0:07:47]} Rxd7 {[%emt 0:08:54]} 20. exd7 {[%emt 0:00:07]} Qxd7 {[%emt 0:00:03]} 21. Rad1 {[%emt 0:04:11]} Qc7 {[%emt 0:13:26]} 22. Qe2 {[%emt 0:03:16]} b5 {[%emt 0:01:10]} 23. Rd2 {[%emt 0:01:44]} Bc6 {[%emt 0:01:37]} 24. Rc1 {[%emt 0:04:49]} Rd8 {[%emt 0:04:25]} (24... Rc8 $14) 25. Rxd8+ $18 {[%emt 0:12:37]} Qxd8 {[%emt 0:00:07] [#]} 26. Rd1 {[%emt 0:00:51] Prevents Qd3.} ({White should try} 26. Ba3 $1 $18 {[%cal Ra3c5]}) 26... Qc8 $14 {[%emt 0:04:09]} 27. g4 {[%emt 0:03:47]} g6 {[%emt 0:00:43]} (27... b4 $14) 28. fxg6 {[%emt 0:01:35]} hxg6 {[%emt 0:00:07]} 29. Rf1 {[%emt 0:02:12]} Qe6 {[%emt 0:01:01]} 30. Qg2 {[%emt 0:01:49]} a5 {[%emt 0:07:51]} (30... Bd7 $16 31. g5 fxg5) 31. Qg3 $18 {[%emt 0:01:52]} Bd7 {[%emt 0:01:03]} 32. g5 {[%emt 0:08:27][%cal Rg5f6]} fxg5 {[%emt 0:01:51]} (32... Bd6 $2 33. Qh4 Qg4+ 34. Qxg4 Bxg4 35. Rxf6 $18) 33. Qb8+ {[%emt 0:00:29]} Bc8 {[%emt 0:00:09]} 34. Qxb5 {[%emt 0:00:46] White threatens Qe8+ and mate.} Bd6 $2 {[%emt 0:02:53]} (34... Bf8 35. Rf6 (35. Qxa5 Ba6 $16) 35... Qg4+ 36. Kh1 Qd1+ 37. Qf1 Qxf1+ 38. Rxf1 Be7) 35. Qxa5 $2 {[%emt 0:02:15]} (35. Rf6 $18 Qg4+ 36. Kh1) 35... Bxh2+ $1 $11 {[%emt 0:00:21]} 36. Kh1 {[%emt 0:01:11] Intending Qd8+ and mate. Really sharp!} Bf4 $2 {[%emt 0:00:43][%mdl 8192]} 37. Qd8+ $18 {[%emt 0:02:19]} ({And not} 37. exf4 Qh3+ 38. Kg1 Qg3+ 39. Kh1 Qh3+ 40. Kg1 Qg3+ 41. Kh1 Qh3+ $11) 37... Kf7 {[%emt 0:00:10] [#] ( -> ...Qh3+)} 38. Qf6+ $2 {[%emt 0:00:25]} ({Weaker is} 38. exf4 Qh3+ 39. Kg1 Qg3+ 40. Kh1 Qh3+ 41. Kg1 Qg3+ 42. Kh1 Qh3+ $11) (38. Qh8 $1 $18) 38... Qxf6 $11 {[%emt 0:00:06] The position is equal.} 39. Bxf6 {[%emt 0:00:04]} Bh3 {[%emt 0:00:36]} ({Don't take} 39... Kxf6 40. exf4 gxf4 41. Rxf4+ Ke5 42. Rf8 $16) 40. Re1 {[%emt 0:08:27]} Bg3 {[%emt 0:01:09] A strong pair of Bishops.} 41. Rg1 {[%emt 0:30:20]} Bf2 {[%emt 0:30:20]} 42. Bxg5 {[%emt 0:00:53] Black must now prevent Rc1.} Bxg1 {[%emt 0:00:12]} 43. Kxg1 {[%emt 0:00:02]} c4 {[%emt 0:00:00] Weighted Error Value: White=0.43/Black=0.50} 1/2-1/2

[Event "Dutch Open 2022"]
[Site "Dieren"]
[Date "2022.08.04"]
[Round "9.15"]
[White "Roorda, Thijs"]
[Black "Shakhverdian, William"]
[Result "1-0"]
[ECO "D02"]
[WhiteElo "2113"]
[BlackElo "2040"]
[Annotator "TA"]
[PlyCount "49"]
[EventDate "2022.07.14"]
[EventType "swiss"]
[EventCountry "NED"]
[SourceTitle "playchess.com"]
[Source "ChessBase"]
[SourceQuality "1"]
[TimeControl "40/5400+30:1800+30"]

{[%evp 21,49,47,50,56,56,51,87,75,83,83,79,73,80,65,65,76,212,153,247,251,247,248,383,369,339,340,614,583,554,553]} 1. Nf3 {[%emt 0:00:03]} d5 {[%emt 0:00:10]} 2. g3 {[%emt 0:00:06]} c5 {[%emt 0:00:29]} 3. Bg2 {[%emt 0:00:06]} Nf6 {[%emt 0:01:06]} 4. O-O {[%emt 0:00:08]} Nc6 {[%emt 0:00:06]} 5. d4 {[%emt 0:00:05]} cxd4 {[%emt 0:00:09]} 6. Nxd4 {[%emt 0:00:06]} e5 {[%emt 0:00:05]} 7. Nxc6 {[%emt 0:00:05]} bxc6 {[%emt 0:00:04]} 8. c4 {[%emt 0:00:06]} Be6 {[%emt 0:02:02]} 9. Nc3 {[%emt 0:02:12]} Rb8 {[%emt 0:06:32]} 10. cxd5 {[%emt 0:07:24]} cxd5 {[%emt 0:01:22]} 11. Qa4+ {[%emt 0:00:13]} Qd7 {[%emt 0:05:47]} 12. Qxd7+ {[%emt 0:00:06] D02: 1 d4 d5 2 Nf3 sidelines, including 2...Nf6 3 g3 and 2...Nf6 3 Bf4.} Kxd7 {[%emt 0:00:03]} 13. Rd1 $1 {[%emt 0:00:37][%cal Rc3d5] [#]} Bb4 $146 {[%emt 0:10:00]} ({Predecessor:} 13... d4 14. e3 Bc5 15. Na4 Bb6 16. Nxb6+ Rxb6 17. exd4 e4 18. d5 Bg4 19. Rd4 Rc8 {½-½ (32) Nakamura,H (2785)-Anand,V (2786) Stavanger 2017}) 14. Nxd5 {[%emt 0:02:07] White is better.} Nxd5 {[%emt 0:00:04]} 15. Bxd5 {[%emt 0:00:06]} Bxd5 {[%emt 0:00:03]} 16. Rxd5+ {[%emt 0:00:07]} Ke6 {[%emt 0:00:03]} 17. e4 {[%emt 0:03:57]} f5 {[%emt 0:01:51]} 18. Be3 {[%emt 0:06:15]} Be7 {[%emt 0:02:37] This costs Black the game.} (18... a6 $16) 19. Rad1 {[%emt 0:04:42]} (19. Bxa7 Rxb2 20. a4 fxe4 $14) 19... f4 {[%emt 0:03:18]} (19... fxe4 $16 20. b3 (20. Bxa7 Rb7 $14) 20... a6) 20. gxf4 $18 {[%emt 0:02:09]} exf4 {[%emt 0:00:06]} 21. Bxf4 {[%emt 0:10:07]} Rxb2 {[%emt 0:00:07]} (21... Rb7 $142 22. Re5+ Kf7 23. Rf5+ Kg6) 22. Re5+ {[%emt 0:00:08]} (22. Be5 Rxa2 23. Bc3 (23. Bxg7 $2 Rg8 $19) 23... Ra6 $16) 22... Kf6 {[%emt 0:00:43]} 23. Rd7 {[%emt 0:00:16][%csl LRa7,LRe7]} Bb4 {[%emt 0:00:59] [#]} (23... g5 24. Bg3 (24. Rexe7 gxf4 25. Rxa7 f3 $18) 24... Re8 25. Rxa7 Rb6) 24. Rf5+ {[%emt 0:04:57]} Ke6 {[%emt 0:00:04]} 25. Rxa7 {[%emt 0:00:17] Weighted Error Value: White=0.08 (flawless) /Black=0.69} 1-0